bitfinex/quotes_SOLUSD_20220210
["timestamp","ask_amount","ask_price","bid_price","bid_amount"]
[1644471340953,43.81905741,111.4,111.35,66.04172854]
[1644471341157,43.81905741,111.4,111.35,23.7458]
[1644471342854,57.29215741,111.4,111.35,23.7458]
[1644471343760,57.29215741,111.4,111.35,68.83750131]
[1644471343956,13.4721,111.41,111.35,82.30900131]
[1644471344158,23.3494,111.42,111.35,82.30900131]
[1644471345160,36.90620106,111.41,111.35,82.30900131]
[1644471346662,36.90620106,111.41,111.35,37.2173]
[1644471346860,50.37810106,111.41,111.35,37.2173]
[1644471347261,50.37810106,111.41,111.35,23.7458]
[1644471348560,50.37810106,111.41,111.36,39.70988507]
[1644471348764,50.37810106,111.41,111.36,39.95988507]
[1644471349762,50.37810106,111.41,111.36,0.25]
[1644471349961,50.37810106,111.41,111.35,23.7458]
[1644471351062,50.37810106,111.41,111.35,37.2173]
[1644471352667,50.37810106,111.41,111.36,36.14255329]
[1644471353266,50.37810106,111.41,111.36,36.39255329]
[1644471353969,50.37810106,111.41,111.36,0.25]
[1644471354167,50.37810106,111.41,111.35,37.2173]
[1644471356375,50.37810106,111.41,111.36,38.50601292]
[1644471356671,50.37810106,111.41,111.36,38.75601292]
[1644471357775,50.37810106,111.41,111.36,0.25]
[1644471357975,50.37810106,111.41,111.35,37.2173]
[1644471358877,50.37810106,111.41,111.35,74.17551975]
[1644471364487,50.37810106,111.41,111.35,37.2173]
[1644471364882,50.37810106,111.41,111.35,23.7458]
[1644471365883,51.6559492,111.41,111.35,23.7458]
[1644471367183,50.37810106,111.41,111.35,23.7458]
[1644471368993,51.6559492,111.41,111.33,114.3]
[1644471369185,1.27784814,111.39,111.31,22.8766]
[1644471369385,13.4778,111.37,111.31,22.8766]
[1644471369589,44.24565503,111.36,111.3,28.9134]
[1644471370688,44.24565503,111.36,111.3,29.1634]
[1644471371820,13.4792,111.35,111.3,29.1634]
[1644471372016,41.79273484,111.34,111.3,29.1634]
[1644471372216,41.79273484,111.34,111.3,6.25]
[1644471372616,42.04273484,111.34,111.3,6.25]
[1644471374820,55.52303484,111.34,111.25,117.37854719]
[1644471375025,55.52303484,111.34,111.23,44.9378]
[1644471375026,23.4836,111.33,111.23,23.8599]
[1644471375620,47.22225202,111.32,111.23,59.85789745]
[1644471375919,47.22225202,111.32,111.23,87.60919988]
[1644471376119,47.22225202,111.32,111.23,209.5236637]
[1644471376322,1.27784814,111.37,111.25,46.46063399]
[1644471376520,24.9834,111.37,111.26,37.3644]
[1644471376725,24.9834,111.37,111.26,45.42080243]
[1644471376923,24.9834,111.37,111.26,43.6144]
[1644471377121,38.4608,111.37,111.29,13.4771]
[1644471377420,38.4608,111.37,111.29,53.03010632]
[1644471377421,40.0399605,111.36,111.29,53.03010632]
[1644471377621,40.0399605,111.36,111.29,55.08650875]
[1644471378321,24.9834,111.37,111.29,55.08650875]
[1644471378520,8.27784814,111.39,111.31,13.4746]
[1644471378521,7.0,111.39,111.31,13.4746]
[1644471378719,7.0,111.39,111.32,6.0]
[1644471378919,1.27784814,111.4,111.32,6.0]
[1644471379124,8.27784814,111.41,111.32,6.25]
[1644471379326,45.54259218,111.4,111.32,6.25]
[1644471379621,48.73696741,111.38,111.32,23.9361]
[1644471379820,48.98696741,111.38,111.32,37.4102]
[1644471380722,62.46336741,111.38,111.31,13.4758]
[1644471381121,62.46336741,111.38,111.31,13.7258]
[1644471384524,24.1962,111.37,111.31,13.7258]
[1644471384726,39.61576665,111.36,111.31,13.7498]
[1644471385826,39.61576665,111.36,111.31,0.274]
[1644471386028,39.61576665,111.36,111.31,0.024]
[1644471386231,39.61576665,111.36,111.3,62.1875]
[1644471388428,39.86576665,111.36,111.3,62.1875]
[1644471388831,39.86576665,111.36,111.31,19.4757]
[1644471389031,39.86576665,111.36,111.31,19.4997]
[1644471389229,39.86576665,111.36,111.31,19.7497]
[1644471389631,39.86576665,111.36,111.31,56.97948531]
[1644471391532,39.86576665,111.36,111.31,19.7497]
[1644471392536,39.86576665,111.36,111.31,64.65387966]
[1644471393034,1.27784814,111.39,111.31,64.65387966]
[1644471393236,24.21874814,111.4,111.32,24.4472]
[1644471393533,24.21874814,111.4,111.33,13.4969]
[1644471393733,24.21874814,111.4,111.34,0.024]
[1644471394134,46.17181264,111.39,111.34,0.024]
[1644471394434,46.17181264,111.39,111.33,56.63416945]
[1644471396737,46.42181264,111.39,111.33,56.63416945]
[1644471399064,47.69966078,111.39,111.33,56.63416945]
[1644471399364,47.69966078,111.39,111.33,19.7469]
[1644471399564,47.69966078,111.39,111.33,32.2069]
[1644471400363,46.42181264,111.39,111.33,69.07252585]
[1644471400764,47.69966078,111.39,111.33,69.07252585]
[1644471400964,46.42181264,111.39,111.33,69.07252585]
[1644471404970,46.42181264,111.39,111.33,32.2069]
[1644471406170,47.69966078,111.39,111.33,32.2069]
[1644471409277,47.69966078,111.39,111.33,70.88873224]
[1644471411879,1.27784814,111.39,111.33,70.88873224]
[1644471412080,1.27784814,111.42,111.33,72.69061679]
[1644471412283,8.27784814,111.43,111.34,0.024]
[1644471412482,7.0,111.43,111.36,13.4641]
[1644471412681,1.27784814,111.44,111.37,18.46]
[1644471412884,47.3851,111.49,111.38,47.33180807]
[1644471412885,1.27784814,111.46,111.38,47.33180807]
[1644471413082,1.27784814,111.46,111.4,38.45117523]
[1644471413287,37.14624679,111.47,111.41,18.46]
[1644471413483,37.14624679,111.47,111.42,44.9365643]
[1644471413682,37.14624679,111.47,111.42,45.1865643]
[1644471413883,37.14624679,111.47,111.42,59.44844885]
[1644471414082,35.86839865,111.47,111.44,13.4605]
[1644471414282,35.86839865,111.47,111.44,13.7105]
[1644471415484,48.66294814,111.49,111.44,13.7105]
[1644471415887,47.3851,111.49,111.44,13.7105]
[1644471416485,46.6333899,111.48,111.44,13.7105]
[1644471416885,46.6333899,111.48,111.44,15.51238455]
[1644471419186,14.77520811,111.52,111.44,52.59409106]
[1644471419686,1.27784814,111.53,111.47,13.4576]
[1644471420087,1.27784814,111.53,111.47,13.7076]
[1644471420386,38.77900493,111.52,111.47,13.7076]
[1644471421390,39.02900493,111.52,111.47,13.7076]
[1644471421787,38.77900493,111.52,111.47,13.7076]
[1644471423290,39.02900493,111.52,111.47,13.7076]
[1644471428417,13.49515997,111.54,111.47,54.74114667]
[1644471428619,0.03815997,111.54,111.47,56.5385033]
[1644471429021,0.03815997,111.54,111.49,13.4536]
[1644471429217,0.03815997,111.54,111.49,13.7036]
[1644471429418,48.7528,111.55,111.5,1.79735663]
[1644471429617,88.6021845,111.55,111.5,1.79735663]
[1644471429818,88.6021845,111.55,111.5,2.04735663]
[1644471430018,0.03815997,111.56,111.51,54.80239915]
[1644471430218,0.03815997,111.57,111.51,62.84975578]
[1644471430422,0.03815997,111.59,111.52,1.79735663]
[1644471430618,0.03815997,111.58,111.52,1.79735663]
[1644471430818,0.03815997,111.59,111.53,18.46]
[1644471431017,38.37641714,111.6,111.54,40.3721638]
[1644471431219,0.03815997,111.59,111.55,6.0]
[1644471431422,38.41457711,111.6,111.56,13.4461]
[1644471431623,38.37641714,111.6,111.55,8.04735663]
[1644471431823,38.62641714,111.6,111.55,8.04735663]
[1644471432422,38.62641714,111.6,111.55,2.04735663]
[1644471432826,38.66457711,111.6,111.55,2.04735663]
[1644471433024,38.62641714,111.6,111.55,2.04735663]
[1644471433424,38.66457711,111.6,111.55,2.04735663]
[1644471433626,38.62641714,111.6,111.55,2.04735663]
[1644471433827,0.03815997,111.62,111.55,38.9344532]
[1644471434028,0.03815997,111.62,111.55,52.3819532]
[1644471434227,0.03815997,111.62,111.56,1.79735663]
[1644471434629,0.03815997,111.62,111.56,2.04735663]
[1644471435027,45.64805596,111.62,111.56,2.04735663]
[1644471435327,45.64805596,111.62,111.57,13.4449]
[1644471435730,45.64805596,111.62,111.57,13.6949]
[1644471436431,45.64805596,111.62,111.57,57.50377693]
[1644471436733,45.64805596,111.62,111.57,13.6949]
[1644471437329,45.89805596,111.62,111.57,13.6949]
[1644471438836,0.03815997,111.62,111.57,55.51062833]
[1644471439036,0.03815997,111.64,111.59,13.4429]
[1644471439237,7.0,111.65,111.6,6.0]
[1644471439433,7.03815997,111.65,111.6,6.0]
[1644471439633,24.7433,111.66,111.6,0.25]
[1644471439834,47.9910704,111.65,111.6,2.04735663]
[1644471440037,47.9910704,111.65,111.58,13.4444]
[1644471440236,2.28936227,111.64,111.53,36.8288]
[1644471440435,0.03815997,111.63,111.53,24.3688]
[1644471440637,0.03815997,111.63,111.53,24.6188]
[1644471440937,43.0772007,111.63,111.54,46.708955]
[1644471441136,43.0772007,111.63,111.54,59.168955]
[1644471441336,43.0772007,111.63,111.54,59.418955]
[1644471441539,43.0772007,111.63,111.57,39.30468531]
[1644471441739,43.0772007,111.63,111.57,39.55468531]
[1644471442538,43.3272007,111.63,111.57,39.55468531]
[1644471443737,43.3272007,111.63,111.58,13.4435]
[1644471444138,43.3272007,111.63,111.58,13.6935]
[1644471447241,43.3272007,111.63,111.58,13.4435]
[1644471447443,43.3272007,111.63,111.56,13.4457]
[1644471447643,22.8278,111.62,111.55,1.79735663]
[1644471448043,22.8278,111.62,111.53,83.24815663]
[1644471448242,45.40723289,111.61,111.54,41.57501134]
[1644471448645,45.40723289,111.61,111.55,1.79735663]
[1644471448845,45.40723289,111.61,111.56,37.36375704]
[1644471449047,36.31395997,111.62,111.56,37.36375704]
[1644471449249,36.31395997,111.62,111.56,39.16111367]
[1644471450048,40.50826232,111.61,111.56,39.16111367]
[1644471450248,40.50826232,111.61,111.56,2.04735663]
[1644471451750,40.75826232,111.61,111.56,2.04735663]
[1644471452253,54.20746232,111.61,111.56,1.79735663]
[1644471452451,55.48531046,111.61,111.53,1.79735663]
[1644471452651,25.58194814,111.6,111.53,0.25]
[1644471453251,44.99702328,111.59,111.53,0.25]
[1644471453451,45.03518325,111.59,111.53,0.25]
[1644471453855,58.48698325,111.59,111.52,13.4515]
[1644471454054,0.03815997,111.58,111.52,13.4515]
[1644471454255,59.76483139,111.59,111.52,15.24885663]
[1644471454459,0.03815997,111.58,111.52,15.24885663]
[1644471454661,46.31303139,111.59,111.52,15.24885663]
[1644471454862,13.4524,111.58,111.52,15.24885663]
[1644471455062,14.76840811,111.58,111.52,15.24885663]
[1644471455260,15.01840811,111.58,111.52,15.24885663]
[1644471455462,39.88197826,111.57,111.52,15.24885663]
[1644471455663,39.88197826,111.57,111.51,13.4529]
[1644471455862,41.19798637,111.57,111.51,13.7029]
[1644471456864,54.65148637,111.57,111.51,13.7029]
[1644471458281,1.27784814,111.56,111.51,13.7029]
[1644471458480,43.21229608,111.55,111.51,13.7029]
[1644471461083,43.46229608,111.55,111.51,13.7029]
[1644471466592,1.27784814,111.56,111.51,15.50025663]
[1644471466992,1.27784814,111.57,111.51,15.50025663]
[1644471467192,1.27784814,111.57,111.52,6.0]
[1644471467392,0.03815997,111.57,111.53,13.448]
[1644471467594,0.03815997,111.58,111.53,54.5476423]
[1644471467796,37.57566196,111.59,111.53,54.7976423]
[1644471467994,37.57566196,111.59,111.54,1.79735663]
[1644471468195,37.53750199,111.59,111.54,2.04735663]
[1644471469194,37.78750199,111.59,111.54,2.04735663]
[1644471469697,37.78750199,111.59,111.55,13.448]
[1644471470104,37.78750199,111.59,111.55,55.34318061]
[1644471471097,37.78750199,111.59,111.55,13.698]
[1644471476727,37.78750199,111.59,111.55,58.24897627]
[1644471477124,1.52784814,111.59,111.55,58.24897627]
[1644471479127,1.27784814,111.59,111.55,58.24897627]
[1644471479333,24.34225997,111.6,111.55,58.24897627]
[1644471479334,1.31600811,111.6,111.55,60.0463329]
[1644471479529,1.27784814,111.6,111.56,6.0]
[1644471479734,1.27784814,111.61,111.57,13.4431]
[1644471479929,1.27784814,111.61,111.57,15.24045663]
[1644471480134,1.31600811,111.62,111.58,38.26233221]
[1644471480331,1.27784814,111.62,111.58,38.26233221]
[1644471480535,43.18201942,111.62,111.58,38.51233221]
[1644471480729,43.18201942,111.62,111.59,13.4414]
[1644471480930,1.27784814,111.62,111.59,13.4414]
[1644471481333,1.27784814,111.62,111.59,13.6914]
[1644471482831,6.06219997,111.61,111.59,13.4414]
[1644471483036,6.06219997,111.61,111.56,1.79735663]
[1644471483231,7.34004811,111.61,111.53,24.9408]
[1644471483431,1.31600811,111.6,111.53,24.9408]
[1644471483733,1.31600811,111.6,111.54,41.67000029]
[1644471483934,0.03815997,111.6,111.54,41.67000029]
[1644471484136,1.27784814,111.61,111.54,41.92000029]
[1644471484334,0.03815997,111.6,111.54,41.92000029]
[1644471484534,1.31600811,111.61,111.54,41.92000029]
[1644471484833,1.31600811,111.61,111.55,13.4473]
[1644471485034,1.31600811,111.61,111.56,38.59418123]
[1644471485234,2.53984603,111.64,111.56,38.59418123]
[1644471485235,1.31600811,111.62,111.56,38.84418123]
[1644471485436,1.27784814,111.63,111.57,6.0]
[1644471485637,1.27784814,111.63,111.56,62.29868123]
[1644471485833,1.27784814,111.63,111.57,0.25]
[1644471486034,40.74821549,111.63,111.58,34.28208177]
[1644471486234,1.27784814,111.62,111.58,34.53208177]
[1644471486637,1.27784814,111.62,111.58,0.25]
[1644471487534,1.27784814,111.62,111.57,40.81027738]
[1644471487734,1.31600811,111.62,111.59,13.4426]
[1644471487935,1.27784814,111.62,111.59,13.4426]
[1644471488140,6.06219997,111.61,111.59,13.4426]
[1644471489637,1.27784814,111.62,111.59,13.4426]
[1644471490037,40.74821549,111.63,111.59,13.4426]
[1644471490236,1.27784814,111.62,111.59,13.4426]
[1644471490437,3.03219997,111.61,111.59,13.4426]
[1644471492443,3.03,111.6,111.59,13.4426]
[1644471493146,3.03,111.6,111.54,44.818]
[1644471493943,27.9829,111.6,111.56,13.447]
[1644471494344,29.26074814,111.6,111.56,13.447]
[1644471494749,29.26074814,111.6,111.56,13.697]
[1644471495345,37.58045851,111.59,111.56,13.697]
[1644471496949,6.06219997,111.58,111.56,13.697]
[1644471497549,6.06219997,111.58,111.56,13.447]
[1644471498850,38.85830665,111.59,111.56,13.447]
[1644471499451,3.03,111.58,111.56,13.447]
[1644471500251,4.30784814,111.58,111.56,13.447]
[1644471500452,3.03,111.58,111.56,13.447]
[1644471501053,38.85830665,111.59,111.56,13.447]
[1644471503051,3.03219997,111.58,111.56,13.447]
[1644471504054,38.85830665,111.59,111.56,13.447]
[1644471504454,6.06219997,111.58,111.56,13.447]
[1644471505054,38.85830665,111.59,111.56,13.447]
[1644471507759,1.27784814,111.59,111.56,13.447]
[1644471509061,1.31566295,111.61,111.57,1.80300912]
[1644471509260,1.27750298,111.61,111.58,13.441]
[1644471509461,0.03815997,111.62,111.58,13.441]
[1644471509660,8.31566295,111.64,111.59,7.80300912]
[1644471509860,0.03815997,111.63,111.59,7.80300912]
[1644471510063,1.27750298,111.64,111.6,1.80300912]
[1644471510261,0.03815997,111.64,111.58,0.25]
[1644471510462,1.27750298,111.63,111.58,0.25]
[1644471510662,1.27750298,111.63,111.6,13.4388]
[1644471510862,47.16251891,111.63,111.6,13.4388]
[1644471511063,47.12435894,111.63,111.6,13.4388]
[1644471511862,6.06219997,111.62,111.6,13.4388]
[1644471513364,3.03,111.62,111.6,13.4388]
[1644471514267,6.06219997,111.62,111.6,13.4388]
[1644471515265,47.94034981,111.61,111.6,13.4388]
[1644471518195,47.94034981,111.61,111.59,13.4436]
[1644471518595,47.94034981,111.61,111.56,36.6463]
[1644471518796,47.94034981,111.61,111.55,1.80300912]
[1644471518996,49.25601276,111.61,111.53,22.5883]
[1644471519197,49.25601276,111.61,111.54,1.80300912]
[1644471519396,49.50601276,111.61,111.55,13.4485]
[1644471519603,24.3031,111.6,111.55,13.4485]
[1644471519899,46.39434521,111.59,111.55,15.25150912]
[1644471520097,46.39434521,111.59,111.55,15.50150912]
[1644471525206,46.64434521,111.59,111.55,15.50150912]
[1644471527014,46.64434521,111.59,111.55,52.57857045]
[1644471527206,0.25,111.59,111.55,52.57857045]
[1644471527608,24.3031,111.6,111.55,52.57857045]
[1644471528310,70.20365598,111.6,111.55,52.57857045]
[1644471531014,1.27750298,111.61,111.55,52.57857045]
[1644471531211,0.25,111.61,111.55,75.68017045]
[1644471531410,0.25,111.61,111.55,88.14017045]
[1644471531609,26.25026295,111.62,111.55,88.14017045]
[1644471531809,1.31566295,111.62,111.56,6.0]
[1644471532109,0.03815997,111.62,111.58,35.8340909]
[1644471532309,60.3292556,111.64,111.58,36.0840909]
[1644471532509,0.03815997,111.63,111.59,1.80300912]
[1644471532710,60.3292556,111.64,111.59,2.05300912]
[1644471532910,60.29109563,111.64,111.59,2.05300912]
[1644471533109,60.54109563,111.64,111.59,2.05300912]
[1644471533709,60.54109563,111.64,111.59,15.49540912]
[1644471534911,37.94599563,111.64,111.59,15.49540912]
[1644471540420,37.69599563,111.64,111.59,15.49540912]
[1644471541718,37.94599563,111.64,111.59,15.49540912]
[1644471544844,37.94599563,111.64,111.59,15.24540912]
[1644471545046,37.94599563,111.64,111.58,13.445]
[1644471545248,1.27750298,111.63,111.54,79.28748256]
[1644471545444,42.98998674,111.62,111.54,79.28748256]
[1644471545645,37.53109332,111.6,111.54,79.28748256]
[1644471545847,37.53109332,111.6,111.54,12.46]
[1644471546048,37.53109332,111.6,111.53,1.80300912]
[1644471546847,37.53109332,111.6,111.53,39.59325027]
[1644471547251,37.53109332,111.6,111.53,39.84325027]
[1644471547749,50.97989332,111.6,111.55,13.4469]
[1644471548148,50.97989332,111.6,111.55,13.6969]
[1644471549151,51.22989332,111.6,111.55,13.6969]
[1644471549655,51.22989332,111.6,111.55,13.4469]
[1644471550252,52.5073963,111.6,111.55,13.4469]
[1644471551053,38.8085963,111.6,111.55,13.4469]
[1644471551253,37.53109332,111.6,111.55,13.6969]
[1644471552655,37.78109332,111.6,111.55,13.6969]
[1644471560274,38.70350298,111.61,111.55,53.66931985]
[1644471560467,38.70350298,111.61,111.57,13.4447]
[1644471560468,23.978,111.61,111.57,13.4447]
[1644471560671,1.27750298,111.63,111.57,13.6947]
[1644471560871,1.27750298,111.63,111.57,15.49770912]
[1644471561272,39.56402999,111.62,111.57,60.26108144]
[1644471563894,39.81402999,111.62,111.57,60.26108144]
[1644471564395,39.56402999,111.62,111.57,60.26108144]
[1644471564595,1.27750298,111.64,111.58,6.0]
[1644471564797,1.27750298,111.65,111.59,13.4403]
[1644471564997,24.70806295,111.66,111.59,15.24325834]
[1644471565196,24.70806295,111.66,111.6,1.80295834]
[1644471565599,36.1917098,111.65,111.6,2.05295834]
[1644471566701,36.1917098,111.65,111.61,13.4402]
[1644471567100,36.1917098,111.65,111.61,13.6902]
[1644471567300,24.70806295,111.66,111.61,55.55093476]
[1644471567500,24.70806295,111.66,111.61,57.3538931]
[1644471567699,23.3924,111.66,111.61,15.49315834]
[1644471567899,23.4306164,111.66,111.61,15.49315834]
[1644471568103,23.6806164,111.66,111.61,15.49315834]
[1644471568899,45.85989302,111.65,111.61,15.49315834]
[1644471569501,45.85989302,111.65,111.61,15.24315834]
[1644471569800,45.85989302,111.65,111.61,13.4402]
[1644471569999,47.137396,111.65,111.61,13.4402]
[1644471570607,47.137396,111.65,111.58,70.34875834]
[1644471570608,60.580196,111.65,111.6,13.4431]
[1644471571103,60.580196,111.65,111.58,1.80295834]
[1644471571305,24.57600298,111.64,111.51,1.27218555]
[1644471571505,48.77411938,111.64,111.54,1.80295834]
[1644471571703,1.27750298,111.63,111.54,1.80295834]
[1644471572103,37.72524922,111.62,111.55,38.19723572]
[1644471572503,37.72524922,111.62,111.55,38.44723572]
[1644471572706,51.17174922,111.62,111.57,13.4465]
[1644471573104,51.42174922,111.62,111.57,13.4465]
[1644471580016,51.17174922,111.62,111.57,13.4465]
[1644471580218,51.17174922,111.62,111.57,13.6965]
[1644471580417,51.17174922,111.62,111.57,13.4465]
[1644471581319,51.42174922,111.62,111.57,13.4465]
[1644471582818,52.6992522,111.62,111.56,13.4471]
[1644471583217,52.6992522,111.62,111.56,13.6971]
[1644471588123,52.6992522,111.62,111.56,13.4471]
[1644471588324,52.6992522,111.62,111.56,13.6971]
[1644471589447,52.6992522,111.62,111.56,13.4471]
[1644471589646,1.27750298,111.61,111.56,13.4471]
[1644471589847,42.33454527,111.6,111.56,13.4471]
[1644471593651,42.58454527,111.6,111.56,13.4471]
[1644471596755,42.58454527,111.6,111.55,13.4488]
[1644471596756,56.03304527,111.6,111.55,13.4488]
[1644471596957,80.95794527,111.6,111.52,14.28245184]
[1644471597159,82.23544825,111.6,111.53,0.024]
[1644471597356,82.23544825,111.6,111.53,6.024]
[1644471597556,82.23544825,111.6,111.54,0.024]
[1644471597756,82.23544825,111.6,111.53,6.024]
[1644471597956,82.23544825,111.6,111.54,0.024]
[1644471598656,1.27750298,111.59,111.54,0.024]
[1644471598857,51.33834923,111.58,111.53,19.4751]
[1644471600759,52.61585221,111.58,111.53,19.4751]
[1644471601557,52.61585221,111.58,111.53,0.024]
[1644471601761,23.6246,111.57,111.51,0.024]
[1644471601958,13.4548,111.56,111.51,0.024]
[1644471602158,13.4548,111.56,111.5,25.13375862]
[1644471602457,41.3358944,111.55,111.5,25.13375862]
[1644471602660,41.3358944,111.55,111.5,1.81795862]
[1644471602857,41.5858944,111.55,111.5,1.81795862]
[1644471603058,55.0405944,111.55,111.5,1.81795862]
[1644471603659,41.5858944,111.55,111.5,15.52165862]
[1644471608562,41.3358944,111.55,111.5,15.52165862]
[1644471609467,41.3358944,111.55,111.5,54.62056767]
[1644471610965,41.3358944,111.55,111.5,15.52165862]
[1644471612267,41.5858944,111.55,111.5,15.52165862]
[1644471615172,41.5858944,111.55,111.5,54.29824936]
[1644471615370,41.5858944,111.55,111.5,15.52165862]
[1644471628110,41.5858944,111.55,111.5,15.27165862]
[1644471628308,55.0402944,111.55,111.5,15.27165862]
[1644471628509,55.0402944,111.55,111.5,13.4777]
[1644471629808,41.5858944,111.55,111.5,13.7277]
[1644471630611,41.5858944,111.55,111.5,15.52126207]
[1644471631011,41.5858944,111.55,111.51,40.53422277]
[1644471631214,0.25,111.55,111.52,13.4519]
[1644471631611,38.35440298,111.57,111.52,13.4519]
[1644471632213,77.75072473,111.57,111.52,13.4519]
[1644471632816,64.29842473,111.57,111.52,15.49546207]
[1644471633316,63.02092175,111.57,111.52,15.49546207]
[1644471633717,1.27750298,111.58,111.53,41.51272792]
[1644471633916,1.27750298,111.58,111.54,13.4482]
[1644471634117,1.27750298,111.6,111.54,15.24176207]
[1644471634317,1.27750298,111.6,111.55,1.79356207]
[1644471634518,1.31571938,111.61,111.55,20.25356207]
[1644471634717,36.32037558,111.61,111.56,36.75017904]
[1644471634919,35.081089,111.61,111.56,38.54374111]
[1644471635218,35.0428726,111.61,111.57,1.79356207]
[1644471635422,35.0428726,111.61,111.58,13.4434]
[1644471635820,35.0428726,111.61,111.58,15.48696207]
[1644471641023,35.0428726,111.61,111.58,15.23696207]
[1644471641222,35.0428726,111.61,111.57,13.4458]
[1644471641423,35.0428726,111.61,111.54,68.852]
[1644471641623,35.0428726,111.61,111.55,0.25]
[1644471641824,35.081089,111.61,111.55,0.25]
[1644471642724,48.529089,111.61,111.56,13.4472]
[1644471642929,48.4908726,111.61,111.56,13.4472]
[1644471644725,48.7408726,111.61,111.56,13.4472]
[1644471646826,35.2928726,111.61,111.56,62.2475047]
[1644471647127,35.0428726,111.61,111.56,13.6972]
[1644471648427,35.2928726,111.61,111.56,13.6972]
[1644471648930,35.2928726,111.61,111.56,59.24247406]
[1644471649930,35.2928726,111.61,111.56,13.6972]
[1644471662365,0.25,111.61,111.56,13.6972]
[1644471662567,0.25,111.61,111.56,15.49076207]
[1644471662765,1.31571938,111.62,111.56,15.49076207]
[1644471663367,47.65187864,111.62,111.56,15.49076207]
[1644471665769,1.31571938,111.62,111.56,15.49076207]
[1644471666169,1.56571938,111.62,111.56,15.49076207]
[1644471668571,1.31571938,111.62,111.56,15.49076207]
[1644471668773,1.31571938,111.62,111.58,13.4421]
[1644471668975,1.27750298,111.63,111.58,13.4421]
[1644471669176,1.27750298,111.64,111.59,7.79356207]
[1644471669377,0.0382164,111.63,111.59,7.79356207]
[1644471669576,34.58831065,111.64,111.6,1.79356207]
[1644471669774,35.90403003,111.64,111.6,1.79356207]
[1644471669975,1.27750298,111.63,111.59,34.78138472]
[1644471670176,1.27750298,111.63,111.58,11.313]
[1644471670375,1.56571938,111.63,111.58,11.563]
[1644471671777,1.56571938,111.63,111.59,13.4439]
[1644471671976,1.52750298,111.63,111.59,13.4439]
[1644471673476,1.27750298,111.62,111.59,13.4439]
[1644471673676,6.06219997,111.61,111.59,13.4439]
[1644471674079,3.03,111.61,111.59,13.4439]
[1644471675676,2.53,111.61,111.59,13.4439]
[1644471675876,45.19938154,111.6,111.59,13.4439]
[1644471676078,48.23158151,111.6,111.59,13.4439]
[1644471676283,1.27750298,111.62,111.59,13.4439]
[1644471676681,25.21410298,111.63,111.59,13.4439]
[1644471677087,25.46410298,111.63,111.59,13.4439]
[1644471677282,48.67353275,111.62,111.59,13.4439]
[1644471677483,3.03219997,111.61,111.59,13.4439]
[1644471677682,5.56219997,111.61,111.59,13.4439]
[1644471678983,48.67353275,111.62,111.59,13.4439]
[1644471679182,1.27750298,111.63,111.6,0.50219996]
[1644471679383,1.27750298,111.63,111.61,13.442]
[1644471679584,1.27750298,111.64,111.61,13.442]
[1644471680183,48.9734533,111.64,111.61,13.442]
[1644471681183,49.2234533,111.64,111.62,0.50219996]
[1644471681383,47.94595032,111.64,111.62,13.94339996]
[1644471681984,24.00441938,111.65,111.62,14.19339996]
[1644471682185,23.96620298,111.65,111.62,13.94339996]
[1644471682584,23.96620298,111.65,111.62,14.19339996]
[1644471682784,23.96620298,111.65,111.62,13.94339996]
[1644471682984,66.24191769,111.65,111.62,13.94339996]
[1644471683186,2.53,111.64,111.62,13.94339996]
[1644471683386,3.03219997,111.63,111.62,13.94339996]
[1644471683685,2.53,111.64,111.62,13.94339996]
[1644471683884,23.96620298,111.65,111.62,13.94339996]
[1644471684091,1.27750298,111.65,111.62,14.19339996]
[1644471684291,1.27750298,111.66,111.62,14.19339996]
[1644471684490,1.31571938,111.67,111.62,14.19339996]
[1644471684690,43.91625754,111.68,111.62,37.06639996]
[1644471684895,43.87804114,111.68,111.62,37.06639996]
[1644471685090,43.91625754,111.68,111.62,37.06639996]
[1644471685290,1.27750298,111.67,111.62,37.06639996]
[1644471685691,44.16625754,111.68,111.62,36.81639996]
[1644471685891,1.31571938,111.68,111.62,36.81639996]
[1644471686305,0.0382164,111.68,111.62,49.27639996]
[1644471686493,1.27750298,111.69,111.62,49.27639996]
[1644471686694,1.27750298,111.68,111.62,49.27639996]
[1644471686993,34.18812838,111.67,111.62,49.27639996]
[1644471687193,34.18812838,111.67,111.62,26.65339996]
[1644471687797,0.0382164,111.68,111.62,26.65339996]
[1644471687995,0.0382164,111.68,111.62,49.30039996]
[1644471688895,39.61186237,111.68,111.62,49.30039996]
[1644471698335,0.0382164,111.68,111.62,49.30039996]
[1644471704545,23.6331164,111.68,111.62,49.30039996]